[Event "Early-Titled-Tuesday-Blitz-July-09-2024"]
[Site "Chess.com"]
[Date "2024.07.09"]
[Round "10"]
[White "sofaceindisguise"]
[Black "Brown_Bear_MGL"]
[Result "1-0"]
[WhiteElo "2779"]
[BlackElo "2645"]
[TimeControl "180+1"]
[EndTime "9:58:10 PDT"]
[Termination "sofaceindisguise won by resignation"]

1. d4 {[%clk 0:03:00.3]} 1... Nf6 {[%clk 0:02:59.2]} 2. Nf3 {[%clk 0:02:56.6]}
2... e6 {[%clk 0:02:59.1]} 3. c4 {[%clk 0:02:54.5]} 3... Bb4+ {[%clk 0:02:58.9]}
4. Nbd2 {[%clk 0:02:51.7]} 4... O-O {[%clk 0:02:58.3]} 5. g3 {[%clk 0:02:51]}
5... b6 {[%clk 0:02:52.1]} 6. Bg2 {[%clk 0:02:50.8]} 6... Bb7 {[%clk 0:02:51.4]}
7. O-O {[%clk 0:02:50.8]} 7... Be7 {[%clk 0:02:47.5]} 8. Qc2 {[%clk 0:02:50.2]}
8... c5 {[%clk 0:02:46.1]} 9. dxc5 {[%clk 0:02:42.9]} 9... Bxc5 {[%clk
0:02:44.8]} 10. Nb3 {[%clk 0:02:34.3]} 10... Be7 {[%clk 0:02:43.6]} 11. Bf4
{[%clk 0:02:33.6]} 11... d6 {[%clk 0:02:39]} 12. Rfe1 {[%clk 0:02:16.8]} 12...
Be4 {[%clk 0:02:33.4]} 13. Qd2 {[%clk 0:02:16.1]} 13... Qc7 {[%clk 0:02:29.9]}
14. Rac1 {[%clk 0:02:15.5]} 14... Rd8 {[%clk 0:02:20.6]} 15. c5 {[%clk 0:02:14]}
15... bxc5 {[%clk 0:01:54.7]} 16. Nxc5 {[%clk 0:02:12.7]} 16... Qb6 {[%clk
0:01:50.4]} 17. Nxe4 {[%clk 0:02:10.6]} 17... Nxe4 {[%clk 0:01:51.3]} 18. Qd4
{[%clk 0:02:08.9]} 18... d5 {[%clk 0:01:45.1]} 19. Be3 {[%clk 0:01:57.4]} 19...
Nd7 {[%clk 0:01:34.8]} 20. Ne5 {[%clk 0:01:45.8]} 20... Bc5 {[%clk 0:01:25]} 21.
Nxd7 {[%clk 0:01:43.5]} 21... Bxd4 {[%clk 0:01:24.9]} 22. Nxb6 {[%clk
0:01:43.3]} 22... Bxb6 {[%clk 0:01:25.1]} 23. Bxe4 {[%clk 0:01:40.7]} 23... Bxe3
{[%clk 0:01:22.3]} 24. Bxh7+ {[%clk 0:01:37.2]} 24... Kxh7 {[%clk 0:01:22]} 25.
fxe3 {[%clk 0:01:38.1]} 25... Rac8 {[%clk 0:01:18.1]} 26. Kf2 {[%clk 0:01:35.4]}
26... Kg6 {[%clk 0:01:18.3]} 27. h4 {[%clk 0:01:34.3]} 27... Kf5 {[%clk
0:01:18.4]} 28. Kf3 {[%clk 0:01:34.8]} 28... Ke5 {[%clk 0:01:14.1]} 29. g4
{[%clk 0:01:34.5]} 29... f5 {[%clk 0:01:03.1]} 30. gxf5 {[%clk 0:01:29.8]} 30...
Kxf5 {[%clk 0:01:03.1]} 31. Rg1 {[%clk 0:01:26.9]} 31... Kf6 {[%clk 0:01:01.4]}
32. h5 {[%clk 0:01:23.6]} 32... Rh8 {[%clk 0:00:47.7]} 33. Rg6+ {[%clk
0:01:10.1]} 33... Kf7 {[%clk 0:00:47.6]} 34. Rcg1 {[%clk 0:01:08.7]} 34... Rh7
{[%clk 0:00:47.2]} 35. R1g4 {[%clk 0:01:02.4]} 35... a5 {[%clk 0:00:39.7]} 36.
Rf4+ {[%clk 0:01:01.6]} 36... Ke7 {[%clk 0:00:38.1]} 37. Ra4 {[%clk 0:01:01.4]}
37... Rc5 {[%clk 0:00:37.2]} 38. b4 {[%clk 0:01:01.6]} 38... axb4 {[%clk
0:00:34.1]} 39. Rxb4 {[%clk 0:00:59.1]} 39... Rxh5 {[%clk 0:00:32.4]} 40. Rb7+
{[%clk 0:00:58.2]} 40... Kd6 {[%clk 0:00:32.6]} 41. Rb6+ {[%clk 0:00:58.7]}
41... Rc6 {[%clk 0:00:30.3]} 42. Rxe6+ {[%clk 0:00:57.9]} 42... Kxe6 {[%clk
0:00:30.6]} 43. Rxc6+ {[%clk 0:00:58.8]} 43... Ke5 {[%clk 0:00:31.3]} 44. a4
{[%clk 0:00:54.9]} 44... Rh4 {[%clk 0:00:30.1]} 45. a5 {[%clk 0:00:55.3]} 45...
Ra4 {[%clk 0:00:28.9]} 46. a6 {[%clk 0:00:55.6]} 46... g5 {[%clk 0:00:28.7]} 47.
Rb6 {[%clk 0:00:50]} 47... g4+ {[%clk 0:00:28.6]} 48. Kg3 {[%clk 0:00:50.3]}
48... Ke4 {[%clk 0:00:28.6]} 49. Re6+ {[%clk 0:00:49.6]} 49... Kf5 {[%clk
0:00:28.4]} 50. Rb6 {[%clk 0:00:39.9]} 50... Ke4 {[%clk 0:00:28.3]} 51. Kf2
{[%clk 0:00:34.2]} 51... g3+ {[%clk 0:00:28.2]} 52. Kxg3 {[%clk 0:00:34.6]}
52... Kxe3 {[%clk 0:00:28.7]} 53. Re6+ {[%clk 0:00:35.3]} 53... Kd2 {[%clk
0:00:25.5]} 54. Kf3 {[%clk 0:00:36]} 54... d4 {[%clk 0:00:19.1]} 55. Kf2 {[%clk
0:00:29.9]} 55... Kc3 {[%clk 0:00:14.9]} 56. Rc6+ {[%clk 0:00:28.2]} 56... Kd2
{[%clk 0:00:14.7]} 57. Kf3 {[%clk 0:00:28]} 57... Ra3+ {[%clk 0:00:12.6]} 58.
Ke4 {[%clk 0:00:28.3]} 58... Ra4 {[%clk 0:00:12.9]} 59. Kf3 {[%clk 0:00:23.3]}
59... Ra3+ {[%clk 0:00:12.6]} 60. Kf2 {[%clk 0:00:22.6]} 60... Ra4 {[%clk
0:00:08.3]} 61. Rd6 {[%clk 0:00:23.3]} 61... Kc3 {[%clk 0:00:07.7]} 62. Kf3
{[%clk 0:00:23.7]} 62... Kd2 {[%clk 0:00:07.5]} 63. e4 {[%clk 0:00:23.1]} 63...
d3 {[%clk 0:00:05]} 64. e5 {[%clk 0:00:23.6]} 64... Kc2 {[%clk 0:00:02.1]} 65.
e6 {[%clk 0:00:23.6]} 65... d2 {[%clk 0:00:02.1]} 66. e7 {[%clk 0:00:24.2]}
66... d1=Q+ {[%clk 0:00:02]} 67. Rxd1 {[%clk 0:00:24]} 67... Kxd1 {[%clk
0:00:02.4]} 68. e8=Q {[%clk 0:00:24.6]} 68... Rxa6 {[%clk 0:00:03.1]} 69. Qe2+
{[%clk 0:00:25.2]} 1-0

[Event "Early-Titled-Tuesday-Blitz-July-09-2024"]
[Site "Chess.com"]
[Date "2024.07.09"]
[Round "10"]
[White "AcostaPablo"]
[Black "temus_galaktionov"]
[Result "1-0"]
[WhiteElo "2712"]
[BlackElo "2832"]
[TimeControl "180+1"]
[EndTime "9:58:14 PDT"]
[Termination "AcostaPablo won by resignation"]

1. c4 {[%clk 0:02:55.8]} 1... c6 {[%clk 0:03:00.9]} 2. Nf3 {[%clk 0:02:52.8]}
2... g6 {[%clk 0:03:01.8]} 3. e3 {[%clk 0:02:48.6]} 3... Bg7 {[%clk 0:03:02.7]}
4. Be2 {[%clk 0:02:48.9]} 4... Nf6 {[%clk 0:03:03.6]} 5. O-O {[%clk 0:02:49.5]}
5... O-O {[%clk 0:03:04.5]} 6. b3 {[%clk 0:02:49.6]} 6... d6 {[%clk 0:03:04.5]}
7. Bb2 {[%clk 0:02:49.4]} 7... e5 {[%clk 0:03:00.9]} 8. d3 {[%clk 0:02:48.8]}
8... Re8 {[%clk 0:02:59]} 9. Nbd2 {[%clk 0:02:47.3]} 9... a5 {[%clk 0:02:58.7]}
10. Qc2 {[%clk 0:02:43.6]} 10... Bf5 {[%clk 0:02:57.3]} 11. Ne4 {[%clk
0:02:41.7]} 11... Qc7 {[%clk 0:02:49.7]} 12. Nh4 {[%clk 0:02:34.7]} 12... Be6
{[%clk 0:02:49.2]} 13. f4 {[%clk 0:02:31.8]} 13... Nxe4 {[%clk 0:02:20.6]} 14.
dxe4 {[%clk 0:02:30.8]} 14... Qe7 {[%clk 0:02:17.6]} 15. Nf3 {[%clk 0:02:23.6]}
15... Bc8 {[%clk 0:02:12.8]} 16. f5 {[%clk 0:01:48.1]} 16... Bh6 {[%clk
0:01:57.4]} 17. Qc3 {[%clk 0:01:40.3]} 17... Na6 {[%clk 0:01:54.6]} 18. Rae1
{[%clk 0:01:35.1]} 18... Nc5 {[%clk 0:01:53.8]} 19. Bd3 {[%clk 0:01:33.1]} 19...
Nxd3 {[%clk 0:01:47.3]} 20. Qxd3 {[%clk 0:01:32.6]} 20... gxf5 {[%clk
0:01:47.4]} 21. exf5 {[%clk 0:01:26.9]} 21... f6 {[%clk 0:01:38.1]} 22. Nd2
{[%clk 0:01:17.6]} 22... Rd8 {[%clk 0:01:35.8]} 23. Rf3 {[%clk 0:01:04.4]} 23...
d5 {[%clk 0:01:34.9]} 24. Rh3 {[%clk 0:00:59.1]} 24... Bg7 {[%clk 0:01:33.5]}
25. Rf1 {[%clk 0:00:52.6]} 25... a4 {[%clk 0:01:31.1]} 26. Qe2 {[%clk
0:00:49.5]} 26... axb3 {[%clk 0:01:30.3]} 27. axb3 {[%clk 0:00:46.7]} 27... Ra2
{[%clk 0:01:29.7]} 28. Bc3 {[%clk 0:00:47.2]} 28... dxc4 {[%clk 0:01:22.7]} 29.
Qxc4+ {[%clk 0:00:45.8]} 29... Qf7 {[%clk 0:01:19.1]} 30. Qh4 {[%clk 0:00:37.2]}
30... Rdxd2 {[%clk 0:01:11]} 31. Qxh7+ {[%clk 0:00:35.1]} 31... Kf8 {[%clk
0:01:11.2]} 32. Bb4+ {[%clk 0:00:31.4]} 32... Ke8 {[%clk 0:01:02.6]} 33. Bxd2
{[%clk 0:00:23.6]} 33... Rxd2 {[%clk 0:01:03.5]} 34. Rg3 {[%clk 0:00:19.4]}
34... Bf8 {[%clk 0:01:02.9]} 35. Qh8 {[%clk 0:00:20]} 35... c5 {[%clk
0:00:37.3]} 36. h4 {[%clk 0:00:19.6]} 36... Rd7 {[%clk 0:00:20.5]} 37. h5 {[%clk
0:00:18.1]} 37... Qh7 {[%clk 0:00:19]} 38. Qxf6 {[%clk 0:00:18.6]} 38... Qxh5
{[%clk 0:00:19.1]} 39. Qxe5+ {[%clk 0:00:16.6]} 39... Re7 {[%clk 0:00:19.2]} 40.
Qxc5 {[%clk 0:00:15]} 40... Bd7 {[%clk 0:00:18.2]} 41. Qd4 {[%clk 0:00:13.9]}
41... Bc6 {[%clk 0:00:18]} 42. f6 {[%clk 0:00:13.3]} 42... Rd7 {[%clk 0:00:15]}
43. Qg4 {[%clk 0:00:09.6]} 43... Qxg4 {[%clk 0:00:14.6]} 44. Rxg4 {[%clk
0:00:10.5]} 44... Kf7 {[%clk 0:00:14.9]} 45. Rh4 {[%clk 0:00:09.1]} 45... Rd6
{[%clk 0:00:14]} 46. b4 {[%clk 0:00:05.4]} 46... Rxf6 {[%clk 0:00:13.2]} 47.
Rh7+ {[%clk 0:00:04.9]} 47... Kg6 {[%clk 0:00:12.6]} 48. Rxf6+ {[%clk
0:00:05.1]} 48... Kxf6 {[%clk 0:00:13.5]} 49. b5 {[%clk 0:00:05.5]} 49... Be4
{[%clk 0:00:12.3]} 50. Rh4 {[%clk 0:00:04.7]} 50... Ke5 {[%clk 0:00:12.5]} 51.
Rh5+ {[%clk 0:00:04.5]} 51... Ke6 {[%clk 0:00:12.8]} 52. Rh4 {[%clk 0:00:04.7]}
52... Bd3 {[%clk 0:00:12.7]} 53. b6 {[%clk 0:00:04.5]} 53... Bc5 {[%clk
0:00:12.4]} 54. Kf2 {[%clk 0:00:04.6]} 54... Kd5 {[%clk 0:00:12.5]} 55. Rh6
{[%clk 0:00:05.3]} 55... Kc4 {[%clk 0:00:12.4]} 56. g4 {[%clk 0:00:05.9]} 56...
Kb5 {[%clk 0:00:12.6]} 57. g5 {[%clk 0:00:06.5]} 57... Bxb6 {[%clk 0:00:12.2]}
58. g6 {[%clk 0:00:07.1]} 58... Bc4 {[%clk 0:00:10.6]} 59. g7 {[%clk 0:00:07.5]}
59... Bc5 {[%clk 0:00:09.2]} 60. Rh5 {[%clk 0:00:06.5]} 60... Kb4 {[%clk
0:00:07.1]} 61. Rh4 {[%clk 0:00:06.8]} 61... b5 {[%clk 0:00:07.1]} 62. g8=Q
{[%clk 0:00:06.4]} 62... Kb3 {[%clk 0:00:07.3]} 63. Rxc4 {[%clk 0:00:06.6]}
63... bxc4 {[%clk 0:00:07.9]} 64. Qb8+ {[%clk 0:00:07.1]} 64... Bb4 {[%clk
0:00:08.2]} 65. Ke2 {[%clk 0:00:06.9]} 65... c3 {[%clk 0:00:09]} 66. Kd3 {[%clk
0:00:07]} 66... c2 {[%clk 0:00:09.4]} 67. Qc8 {[%clk 0:00:07.3]} 67... c1=Q
{[%clk 0:00:07.9]} 68. Qxc1 {[%clk 0:00:07.4]} 1-0

[Event "Early-Titled-Tuesday-Blitz-July-09-2024"]
[Site "Chess.com"]
[Date "2024.07.09"]
[Round "10"]
[White "klercaku"]
[Black "NM_Antelacus"]
[Result "1-0"]
[WhiteElo "2379"]
[BlackElo "2282"]
[TimeControl "180+1"]
[EndTime "9:58:23 PDT"]
[Termination "klercaku won on time"]

1. e4 {[%clk 0:03:00.9]} 1... c5 {[%clk 0:03:00]} 2. Nf3 {[%clk 0:03:00.8]} 2...
Nc6 {[%clk 0:03:00.2]} 3. d4 {[%clk 0:03:01.3]} 3... cxd4 {[%clk 0:03:01]} 4.
Nxd4 {[%clk 0:03:01.2]} 4... Nf6 {[%clk 0:03:01.6]} 5. Nc3 {[%clk 0:03:01.5]}
5... e5 {[%clk 0:03:01.5]} 6. Ndb5 {[%clk 0:03:01]} 6... d6 {[%clk 0:03:01.9]}
7. Bg5 {[%clk 0:03:00.5]} 7... a6 {[%clk 0:03:02.2]} 8. Na3 {[%clk 0:03:01.1]}
8... b5 {[%clk 0:03:01.9]} 9. Nd5 {[%clk 0:03:01.7]} 9... Be7 {[%clk 0:03:02.2]}
10. Bxf6 {[%clk 0:03:02.3]} 10... Bxf6 {[%clk 0:03:02.5]} 11. c3 {[%clk
0:03:03.1]} 11... O-O {[%clk 0:03:02.1]} 12. Nc2 {[%clk 0:03:03.8]} 12... Bg5
{[%clk 0:03:02]} 13. Nce3 {[%clk 0:03:04.5]} 13... Ne7 {[%clk 0:02:58.7]} 14.
Qd3 {[%clk 0:03:02.3]} 14... Be6 {[%clk 0:02:53.8]} 15. Rd1 {[%clk 0:02:58.4]}
15... Nxd5 {[%clk 0:02:50.9]} 16. Nxd5 {[%clk 0:02:57.9]} 16... f5 {[%clk
0:02:36]} 17. Be2 {[%clk 0:02:57.1]} 17... Kh8 {[%clk 0:02:31.8]} 18. Bf3 {[%clk
0:02:55.8]} 18... Ra7 {[%clk 0:02:06.5]} 19. O-O {[%clk 0:02:52.2]} 19... Raf7
{[%clk 0:02:04.8]} 20. exf5 {[%clk 0:02:47.7]} 20... Bxf5 {[%clk 0:02:03.7]} 21.
Be4 {[%clk 0:02:48.1]} 21... Qb8 {[%clk 0:01:41.4]} 22. Nb4 {[%clk 0:02:27.6]}
22... Bxe4 {[%clk 0:01:30.7]} 23. Qxe4 {[%clk 0:02:26.8]} 23... Qb6 {[%clk
0:01:29.8]} 24. Qc6 {[%clk 0:02:12.4]} 24... Qxc6 {[%clk 0:00:56.1]} 25. Nxc6
{[%clk 0:02:12]} 25... Rf6 {[%clk 0:00:51.7]} 26. f3 {[%clk 0:01:44.1]} 26...
Be3+ {[%clk 0:00:50.1]} 27. Kh1 {[%clk 0:01:43.9]} 27... Bc5 {[%clk 0:00:49.5]}
28. Ne7 {[%clk 0:01:37.6]} 28... a5 {[%clk 0:00:41.2]} 29. Nd5 {[%clk
0:01:36.3]} 29... R6f7 {[%clk 0:00:41.4]} 30. Rfe1 {[%clk 0:01:29.2]} 30... Rc8
{[%clk 0:00:38.3]} 31. Rc1 {[%clk 0:01:26.3]} 31... h6 {[%clk 0:00:37.6]} 32. b4
{[%clk 0:01:24.4]} 32... Bf2 {[%clk 0:00:30.4]} 33. Re2 {[%clk 0:01:23.7]} 33...
Bh4 {[%clk 0:00:23.7]} 34. bxa5 {[%clk 0:01:23.5]} 34... Ra8 {[%clk 0:00:23.1]}
35. c4 {[%clk 0:00:54.8]} 35... bxc4 {[%clk 0:00:22.1]} 36. Rxc4 {[%clk
0:00:53.7]} 36... Bg5 {[%clk 0:00:20.2]} 37. Ra4 {[%clk 0:00:51.4]} 37... Rfa7
{[%clk 0:00:20]} 38. h4 {[%clk 0:00:28.3]} 38... Bd8 {[%clk 0:00:17.3]} 39. Ne3
{[%clk 0:00:25]} 39... Rxa5 {[%clk 0:00:16.9]} 40. Rxa5 {[%clk 0:00:22.6]} 40...
Rxa5 {[%clk 0:00:17.8]} 41. Nc4 {[%clk 0:00:23.1]} 41... Rd5 {[%clk 0:00:17.2]}
42. a4 {[%clk 0:00:21.4]} 42... Kg8 {[%clk 0:00:15.1]} 43. g3 {[%clk 0:00:17.5]}
43... Kf7 {[%clk 0:00:14.8]} 44. Rb2 {[%clk 0:00:14.8]} 44... Ke6 {[%clk
0:00:14.2]} 45. Ne3 {[%clk 0:00:11.9]} 45... Rd3 {[%clk 0:00:13.6]} 46. Nc4
{[%clk 0:00:08.5]} 46... Rxf3 {[%clk 0:00:12]} 47. a5 {[%clk 0:00:09]} 47... Rc3
{[%clk 0:00:11.7]} 48. Rb4 {[%clk 0:00:06.7]} 48... Rc1+ {[%clk 0:00:09.5]} 49.
Kg2 {[%clk 0:00:07]} 49... Ra1 {[%clk 0:00:09.8]} 50. Rb5 {[%clk 0:00:06.2]}
50... d5 {[%clk 0:00:09.6]} 51. Nb6 {[%clk 0:00:05.4]} 51... Bxb6 {[%clk
0:00:09.4]} 52. Rxb6+ {[%clk 0:00:05.5]} 52... Kf5 {[%clk 0:00:08.1]} 53. Rb7
{[%clk 0:00:04.7]} 53... g5 {[%clk 0:00:07.7]} 54. hxg5 {[%clk 0:00:04.4]} 54...
hxg5 {[%clk 0:00:07.3]} 55. Rf7+ {[%clk 0:00:04.8]} 55... Kg4 {[%clk 0:00:06.5]}
56. Ra7 {[%clk 0:00:04.4]} 56... Ra2+ {[%clk 0:00:06.8]} 57. Kf1 {[%clk
0:00:04.8]} 57... Kxg3 {[%clk 0:00:07.3]} 58. a6 {[%clk 0:00:04.8]} 58... g4
{[%clk 0:00:07.4]} 59. Ra8 {[%clk 0:00:05.4]} 59... e4 {[%clk 0:00:07.7]} 60. a7
{[%clk 0:00:05.7]} 60... d4 {[%clk 0:00:07.1]} 61. Re8 {[%clk 0:00:05]} 61...
Rxa7 {[%clk 0:00:06.6]} 62. Rxe4 {[%clk 0:00:05.5]} 62... Ra4 {[%clk 0:00:06.1]}
63. Ke2 {[%clk 0:00:04.3]} 63... Kh3 {[%clk 0:00:06.1]} 64. Kd3 {[%clk
0:00:03.4]} 64... g3 {[%clk 0:00:06.2]} 65. Re8 {[%clk 0:00:03.3]} 65... g2
{[%clk 0:00:06.3]} 66. Rh8+ {[%clk 0:00:03.2]} 66... Kg3 {[%clk 0:00:06.8]} 67.
Rg8+ {[%clk 0:00:03.8]} 67... Kf2 {[%clk 0:00:07.3]} 68. Rf8+ {[%clk 0:00:04.2]}
68... Kg1 {[%clk 0:00:07.8]} 69. Rg8 {[%clk 0:00:02.9]} 69... Ra2 {[%clk
0:00:06.4]} 70. Kxd4 {[%clk 0:00:02.5]} 70... Kf1 {[%clk 0:00:04.2]} 71. Rf8+
{[%clk 0:00:02]} 1-0

[Event "Early-Titled-Tuesday-Blitz-July-09-2024"]
[Site "Chess.com"]
[Date "2024.07.09"]
[Round "10"]
[White "KevinGeorgeMicheal"]
[Black "Witik"]
[Result "0-1"]
[WhiteElo "2535"]
[BlackElo "2678"]
[TimeControl "180+1"]
[EndTime "9:58:34 PDT"]
[Termination "Witik won by resignation"]

1. Nf3 {[%clk 0:03:00.2]} 1... Nf6 {[%clk 0:03:00]} 2. g3 {[%clk 0:02:03.3]}
2... g6 {[%clk 0:02:59.3]} 3. Bg2 {[%clk 0:02:02.6]} 3... Bg7 {[%clk 0:02:59.9]}
4. O-O {[%clk 0:01:55.9]} 4... O-O {[%clk 0:03:00.2]} 5. d3 {[%clk 0:01:56.6]}
5... d5 {[%clk 0:03:00.1]} 6. Nbd2 {[%clk 0:01:53.6]} 6... c5 {[%clk 0:02:59.8]}
7. e4 {[%clk 0:01:23.7]} 7... Nc6 {[%clk 0:02:59.7]} 8. Re1 {[%clk 0:01:23.3]}
8... e5 {[%clk 0:02:59.5]} 9. exd5 {[%clk 0:01:22.9]} 9... Nxd5 {[%clk
0:03:00.4]} 10. Nc4 {[%clk 0:01:23]} 10... f6 {[%clk 0:02:52.7]} 11. Ne3 {[%clk
0:01:19.7]} 11... Nde7 {[%clk 0:02:48.8]} 12. a3 {[%clk 0:01:17.2]} 12... Be6
{[%clk 0:02:44.5]} 13. Bd2 {[%clk 0:01:16.6]} 13... a5 {[%clk 0:02:41.3]} 14. a4
{[%clk 0:01:10.9]} 14... Qc7 {[%clk 0:02:38.4]} 15. Nc4 {[%clk 0:01:06.2]} 15...
Rad8 {[%clk 0:02:33.7]} 16. Qe2 {[%clk 0:01:04.1]} 16... Kh8 {[%clk 0:02:21.3]}
17. b3 {[%clk 0:01:02]} 17... Nf5 {[%clk 0:02:17.7]} 18. Bc3 {[%clk 0:00:59.7]}
18... b6 {[%clk 0:02:14.4]} 19. h3 {[%clk 0:00:57.2]} 19... Rfe8 {[%clk
0:02:11.8]} 20. Kh2 {[%clk 0:00:54.2]} 20... Bf7 {[%clk 0:02:10.9]} 21. Qf1
{[%clk 0:00:51.3]} 21... Nb4 {[%clk 0:01:55.2]} 22. Na3 {[%clk 0:00:44.9]} 22...
Ne7 {[%clk 0:01:49.1]} 23. Qe2 {[%clk 0:00:41.1]} 23... h6 {[%clk 0:01:45.4]}
24. Nb5 {[%clk 0:00:38.4]} 24... Qd7 {[%clk 0:01:45.5]} 25. Bb2 {[%clk
0:00:34.7]} 25... Nec6 {[%clk 0:01:43]} 26. Rad1 {[%clk 0:00:29.3]} 26... Nd4
{[%clk 0:01:38.2]} 27. Nfxd4 {[%clk 0:00:28]} 27... cxd4 {[%clk 0:01:32.4]} 28.
Na3 {[%clk 0:00:25.3]} 28... Kh7 {[%clk 0:01:23.5]} 29. Nc4 {[%clk 0:00:25.3]}
29... Qc7 {[%clk 0:01:23.9]} 30. Ba3 {[%clk 0:00:24.3]} 30... Nd5 {[%clk
0:01:19.8]} 31. Bb2 {[%clk 0:00:22.7]} 31... f5 {[%clk 0:01:15.4]} 32. h4 {[%clk
0:00:22.2]} 32... h5 {[%clk 0:01:10.4]} 33. Kg1 {[%clk 0:00:20.5]} 33... Nc3
{[%clk 0:01:10.6]} 34. Bxc3 {[%clk 0:00:19.6]} 34... dxc3 {[%clk 0:01:11.5]} 35.
Kh2 {[%clk 0:00:20.1]} 35... Rd4 {[%clk 0:01:10.8]} 36. Bf3 {[%clk 0:00:17.8]}
36... Bxc4 {[%clk 0:01:01.8]} 37. bxc4 {[%clk 0:00:14.3]} 37... Red8 {[%clk
0:01:01.5]} 38. Bd5 {[%clk 0:00:13.8]} 38... Qc5 {[%clk 0:00:55]} 39. Rb1 {[%clk
0:00:12.6]} 39... R8xd5 {[%clk 0:00:46.1]} 40. cxd5 {[%clk 0:00:11.9]} 40...
Rxa4 {[%clk 0:00:46.7]} 41. d4 {[%clk 0:00:09.2]} 41... Rxd4 {[%clk 0:00:44.5]}
42. Qb5 {[%clk 0:00:08.7]} 42... Rxd5 {[%clk 0:00:37.7]} 43. Qxb6 {[%clk
0:00:07.8]} 43... Qxb6 {[%clk 0:00:30.3]} 44. Rxb6 {[%clk 0:00:07.9]} 44... Rd2
{[%clk 0:00:31]} 45. Kg1 {[%clk 0:00:08.5]} 45... Rxc2 {[%clk 0:00:30.5]} 46.
Ra6 {[%clk 0:00:08.3]} 46... e4 {[%clk 0:00:28.9]} 47. Rxa5 {[%clk 0:00:07.5]}
47... Bd4 {[%clk 0:00:29.3]} 48. Rf1 {[%clk 0:00:06]} 48... Rd2 {[%clk
0:00:21.8]} 49. Rd5 {[%clk 0:00:04]} 49... Bxf2+ {[%clk 0:00:19.9]} 50. Rxf2
{[%clk 0:00:03.9]} 50... Rxd5 {[%clk 0:00:20.8]} 51. Rc2 {[%clk 0:00:04.4]}
51... Rd3 {[%clk 0:00:14.8]} 52. Kf2 {[%clk 0:00:04.4]} 52... g5 {[%clk
0:00:15]} 53. hxg5 {[%clk 0:00:04.1]} 53... Kg6 {[%clk 0:00:15.6]} 54. Rc1
{[%clk 0:00:04.8]} 54... Kxg5 {[%clk 0:00:15.7]} 55. Ra1 {[%clk 0:00:04.5]}
55... Kg4 {[%clk 0:00:15.8]} 56. Ra8 {[%clk 0:00:04.2]} 56... Rf3+ {[%clk
0:00:15.2]} 57. Ke2 {[%clk 0:00:04.2]} 57... Kxg3 {[%clk 0:00:15.7]} 58. Rg8+
{[%clk 0:00:04.6]} 58... Kh3 {[%clk 0:00:14.2]} 59. Rg5 {[%clk 0:00:02.9]} 59...
h4 {[%clk 0:00:14.2]} 60. Rg8 {[%clk 0:00:02]} 60... Kh2 {[%clk 0:00:14.1]} 61.
Rc8 {[%clk 0:00:01.6]} 61... h3 {[%clk 0:00:14.3]} 62. Rg8 {[%clk 0:00:02.1]}
62... Rg3 {[%clk 0:00:14.6]} 63. Rf8 {[%clk 0:00:02.2]} 63... Kg2 {[%clk
0:00:14.9]} 64. Rxf5 {[%clk 0:00:02.6]} 64... h2 {[%clk 0:00:15.3]} 65. Rf2+
{[%clk 0:00:03.1]} 65... Kh3 {[%clk 0:00:15.9]} 66. Rf1 {[%clk 0:00:03.2]} 66...
Rg1 {[%clk 0:00:15.4]} 67. Rf8 {[%clk 0:00:03.7]} 67... h1=Q {[%clk 0:00:15.6]}
68. Rh8+ {[%clk 0:00:04.1]} 68... Kg4 {[%clk 0:00:16]} 69. Rg8+ {[%clk
0:00:04.5]} 69... Kf5 {[%clk 0:00:16.4]} 70. Rf8+ {[%clk 0:00:04.5]} 70... Ke6
{[%clk 0:00:16.6]} 71. Re8+ {[%clk 0:00:05.1]} 71... Kd7 {[%clk 0:00:16.9]} 72.
Re7+ {[%clk 0:00:05.7]} 72... Kxe7 {[%clk 0:00:16.1]} 73. Ke3 {[%clk 0:00:06.4]}
73... Qf3+ {[%clk 0:00:16.2]} 74. Kd4 {[%clk 0:00:06.9]} 74... Qd3+ {[%clk
0:00:16.6]} 75. Kc5 {[%clk 0:00:06.4]} 75... c2 {[%clk 0:00:15.3]} 76. Kb6
{[%clk 0:00:06.1]} 76... c1=Q {[%clk 0:00:14.6]} 0-1